Date,Purpose/Category (T),Department/Service (T),Amount Excl VAT,Beneficiary (T)
29/06/2017,Advertising,Cultural Services Marketing,"2,499.00",4 Global Ltd
29/06/2017,Advertising,Cultural Services Marketing,500.00,4 Global Ltd
28/07/2017,Professional Theatre Fees,Brewhouse Arts Centre,"2,900.00",Absolute Bowie C/O John O�Neill
10/08/2017,Repairs & Maintenance to Buildings,Uttoxeter Leisure Centre,730.00,ACKW Ltd t/a SAS (Safe & Secure)
01/09/2017,Maintenance Contracts,Brewhouse Arts Centre,"1,151.79",ADT Fire And Security Plc
25/07/2017,Consultants,Business Rate Collection,500.00,Airey Consultancy Services Ltd
20/07/2017,Other Equipment,Meadowside Leisure Centre,"8,196.76",Amptron Electrical Services Ltd
07/07/2017,Other Equipment,Meadowside Leisure Centre,568.32,Amptron Electrical Services Ltd
31/08/2017,Repairs & Maintenance to Buildings,Uttoxeter Leisure Centre,"1,669.20",Amptron Electrical Services Ltd
07/07/2017,Other Equipment,Uttoxeter Leisure Centre,797.46,Amptron Electrical Services Ltd
31/08/2017,Contract Payments,Uttoxeter Leisure Centre Capital,610.49,Amptron Electrical Services Ltd
11/09/2017,Christmas Decorations,Grants for Tourism,"1,000.00",An Individual
18/07/2017,Grounds Maintenance,Open Spaces,"1,925.00",An Individual
07/05/2015,Other Reimbursements,Parliamentary Elections,"1,813.97",An Individual
19/09/2017,Town Hall Room Hire,Burton Town Hall Civic Building,606.00,An Individual
27/07/2017,Other Homeless Prevention,Housing Options,"2,000.00",An Individual
25/07/2017,Other Fees & Charges,Dance Development Project,521.50,An Individual
16/07/2017,Arts Worker Fees,Arts Programme - Dance Development,907.50,An Individual
27/06/2017,Other Expenses,Brewhouse Community Ticket Sales,"2,590.00",An Individual
02/08/2017,Other Expenses,Brewhouse Community Ticket Sales,962.00,An Individual
04/09/2017,Legal Costs,Housing Standards,"1,500.00",An Individual
12/09/2017,Legal Costs,Housing Standards,"1,000.00",An Individual
26/06/2017,Fees and Charges,Planning Delivery,"1,540.00",An Individual
24/08/2017,Advance of Salary,Advance of Salary,521.39,An Individual
20/09/2017,Other Expenses,Brewhouse Community Ticket Sales,"10,052.00",An Individual
13/07/2017,Disabled Facility Grant Payments,Housing Standards,780.00,An Individual
29/08/2017,Advance of Salary,Advance of Salary,"1,200.00",An Individual
20/09/2017,Other Expenses,Brewhouse Community Ticket Sales,840.00,An Individual
03/07/2017,Fees and Charges,Planning Delivery,"1,540.00",An Individual
25/07/2017,Other Expenses,Brewhouse Community Ticket Sales,"1,833.50",An Individual
05/07/2017,Arts Worker Fees,Brewhouse Arts Centre,510.00,An Individual
01/07/2017,Repairs & Maintenance to Buildings,Facilities Management,501.48,Angel Springs Ltd
31/08/2017,Professional Support,Facilities Management,"6,000.00",Appleyard & Trew LLP
23/06/2017,Direct Purchases,DSO Stores Account,680.16,Arco Group
14/06/2017,Accommodation Costs - B & B/Hotels,Housing Options - Accommodation,625.00,Ascot Hotel
01/09/2017,Accommodation Costs - B & B/Hotels,Housing Options - Accommodation,775.00,Ascot Hotel
27/05/2017,Accommodation Costs - B & B/Hotels,Housing Options - Accommodation,750.00,Ascot Hotel
25/07/2017,Accommodation Costs - B & B/Hotels,Housing Options - Accommodation,840.00,Ascot Hotel
02/06/2017,Accommodation Costs - B & B/Hotels,Housing Options - Accommodation,575.00,Ascot Hotel
25/06/2017,Accommodation Costs - B & B/Hotels,Housing Options - Accommodation,775.00,Ascot Hotel
14/08/2017,Accommodation Costs - B & B/Hotels,Housing Options - Accommodation,930.00,Ascot Hotel
13/07/2017,Accommodation Costs - B & B/Hotels,Housing Options - Accommodation,575.00,Ascot Hotel
14/07/2017,Accommodation Costs - B & B/Hotels,Housing Options - Accommodation,750.00,Ascot Hotel
19/07/2017,Training Expenses,Corporate Training,"1,759.53",Association Of Electoral Administrators
09/08/2017,Other Equipment,Uttoxeter Leisure Centre,719.43,Audience Systems
18/08/2017,Grounds Maintenance,Open Spaces,668.70,Autosigns
08/09/2017,Grounds Maintenance,Open Spaces,"1,526.00",B & G Lock & Tool Co. Ltd.
27/06/2017,Temporary Staff Costs,Financial Management Unit,976.75,Badenoch & Clarke
07/08/2017,Temporary Staff Costs,Financial Management Unit,857.70,Badenoch & Clarke
19/06/2017,Temporary Staff Costs,Financial Management Unit,857.70,Badenoch & Clarke
16/06/2017,Temporary Staff Costs,Financial Management Unit,744.98,Badenoch & Clarke
22/06/2017,Temporary Staff Costs,Financial Management Unit,857.70,Badenoch & Clarke
26/07/2017,Temporary Staff Costs,Financial Management Unit,857.70,Badenoch & Clarke
14/08/2017,Temporary Staff Costs,Financial Management Unit,857.70,Badenoch & Clarke
07/08/2017,Temporary Staff Costs,Financial Management Unit,857.70,Badenoch & Clarke
11/09/2017,Temporary Staff Costs,Financial Management Unit,857.70,Badenoch & Clarke
04/09/2017,Temporary Staff Costs,Financial Management Unit,857.70,Badenoch & Clarke
26/07/2017,Temporary Staff Costs,Financial Management Unit,857.70,Badenoch & Clarke
04/09/2017,Temporary Staff Costs,Financial Management Unit,857.70,Badenoch & Clarke
04/09/2017,Temporary Staff Costs,Financial Management Unit,571.80,Badenoch & Clarke
20/06/2017,Temporary Staff Costs,Financial Management Unit,877.42,Badenoch & Clarke
26/07/2017,Temporary Staff Costs,Financial Management Unit,571.80,Badenoch & Clarke
01/09/2017,Fees and Charges,Planning Delivery,"20,020.00",Bamford Property Limited
07/06/2017,Wasps Expenditure,Councillors Community Fund,750.00,Barton PCC
19/05/2017,Professional Theatre Fees,Brewhouse Arts Centre,"2,400.00",Battersea Arts Centre
28/06/2017,Accommodation Costs - B & B/Hotels,Housing Options - Accommodation,780.00,Beacon Hotel
29/08/2017,Accommodation Costs - B & B/Hotels,Housing Options - Accommodation,680.00,Beacon Hotel
29/08/2017,Accommodation Costs - B & B/Hotels,Housing Options - Accommodation,680.00,Beacon Hotel
29/08/2017,Accommodation Costs - B & B/Hotels,Housing Options - Accommodation,940.00,Beacon Hotel
24/07/2017,Training Expenses,Corporate Training,950.00,BFA Safety Training Ltd
28/07/2017,Third Party Payments,Recycling,"6,893.71",Biffa Waste Services Limited
07/07/2017,Third Party Payments,Recycling,"4,605.00",Biffa Waste Services Limited
05/06/2017,Third Party Payments,Recycling,"2,457.50",Biffa Waste Services Limited
07/07/2017,Third Party Payments,Recycling,"6,814.21",Biffa Waste Services Limited
07/07/2017,Third Party Payments,Recycling,"39,572.43",Biffa Waste Services Limited
16/06/2017,Third Party Payments,Recycling,"9,492.30",Biffa Waste Services Limited
04/08/2017,Third Party Payments,Recycling,"5,684.78",Biffa Waste Services Limited
31/08/2017,Third Party Payments,Recycling,"39,372.96",Biffa Waste Services Limited
08/09/2017,Third Party Payments,Recycling,"7,904.95",Biffa Waste Services Limited
09/06/2017,Third Party Payments,Recycling,"8,203.87",Biffa Waste Services Limited
18/08/2017,Third Party Payments,Recycling,"7,336.26",Biffa Waste Services Limited
23/06/2017,Third Party Payments,Recycling,"7,881.10",Biffa Waste Services Limited
14/07/2017,Third Party Payments,Recycling,"8,171.01",Biffa Waste Services Limited
30/06/2017,Third Party Payments,Recycling,"7,514.87",Biffa Waste Services Limited
31/07/2017,Third Party Payments,Recycling,"4,330.10",Biffa Waste Services Limited
25/08/2017,Third Party Payments,Recycling,"8,505.97",Biffa Waste Services Limited
01/09/2017,Third Party Payments,Recycling,"7,396.15",Biffa Waste Services Limited
21/07/2017,Third Party Payments,Recycling,"5,833.18",Biffa Waste Services Limited
31/07/2017,Third Party Payments,Recycling,"37,898.27",Biffa Waste Services Limited
11/08/2017,Third Party Payments,Recycling,"7,748.60",Biffa Waste Services Limited
31/07/2017,Advertising,Cultural Services Marketing,520.00,Big Wave Media Ltd
14/09/2017,Advertising,Cultural Services Marketing,"1,842.00",Big Wave Media Ltd
30/06/2017,Public Participation & Consultation,Programmes & Information,"4,400.00",BiP Solutions Ltd
01/09/2017,General Grants,Enterprise,"1,000.00",Birmingham Chamber of Commerce Group
11/07/2017,Repairs & Maintenance to Buildings,Leisure Centres,595.00,Bloomin Gardens And Landscapes Ltd
06/09/2017,ICT Departmental Purchases,ICT,690.00,Blue Cube Security Ltd
17/06/2017,Office Equipment,Burton Retail Market,846.71,Booker Ltd
01/07/2017,Repairs & Maintenance to Buildings,Burton Town Hall Civic Building,748.00,Boss Security
06/05/2017,Repairs & Maintenance to Buildings,Burton Town Hall Civic Building,879.75,Boss Security
29/08/2017,Set up Crews,Burton Town Hall Civic Building,935.00,Boss Security
03/08/2017,Set up Crews,Burton Town Hall Civic Building,"1,636.25",Boss Security
29/06/2017,Contracted Grounds Maintenance,Horticultural Resource Centre,"35,713.31",Boverton Nurseries Ltd
22/06/2017,Contracted Grounds Maintenance,Horticultural Resource Centre,"1,475.00",Boverton Nurseries Ltd
13/06/2017,Swim Water Treatment,Meadowside Leisure Centre,"1,025.94",Brenntag UK Ltd
27/07/2017,Swim Water Treatment,Meadowside Leisure Centre,"1,393.52",Brenntag UK Ltd
04/07/2017,Swim Water Treatment,Uttoxeter Leisure Centre,"1,190.57",Brenntag UK Ltd
15/09/2017,Advertising,Programmes & Information,"1,257.85",British Telecommunications
26/06/2017,Advertising,Programmes & Information,"1,257.85",British Telecommunications
15/08/2017,Parking Tickets,Car Parks - General,739.20,Brown Advertising and Design
14/09/2017,Parking Tickets,Community and Civil Enforcement,967.20,Brown Advertising and Design
31/07/2017,Professional Support,Facilities Management,"1,800.00",Brownhill Hayward Brown Ltd
23/06/2017,Consultants,Staffordshire Waste Project,"9,000.00",Burges Salmon
13/07/2017,Electricity,Shobnall Leisure Complex,579.56,Burton & South Derbyshire College
24/08/2017,Electricity,Shobnall Leisure Complex,663.65,Burton & South Derbyshire College
19/06/2017,Electricity,Shobnall Leisure Complex,696.72,Burton & South Derbyshire College
19/06/2017,Electricity,Shobnall Leisure Complex,665.12,Burton & South Derbyshire College
28/06/2017,Training Expenses,Corporate Training,600.00,Burton & South Derbyshire College
03/07/2017,Rents,County Council Elections,500.00,Burton Albion Community Trust
02/07/2017,Grounds Maintenance,Open Spaces,"1,000.00",Burton Conservation Volunteers
01/09/2017,General Grants,Sports Development Project,500.00,Burton Junior Football League
01/09/2017,Commuted Sum Expenditure,Housing Options,"2,083.33",Burton upon Trent & District YMCA
21/07/2017,Commuted Sum Expenditure,Housing Options,"10,416.67",Burton upon Trent & District YMCA
09/07/2017,Set up Crews,Burton Town Hall Civic Building,"1,200.00",C W Tree Services
09/07/2017,Set up Crews,Burton Town Hall Civic Building,"1,200.00",C W Tree Services
19/06/2017,Haulage of Ballot Boxes/Polling Booths,Parliamentary Elections,"3,345.00",C W Tree Services
25/07/2017,ICT Departmental Purchases,ICT,750.00,CAE Technology Services Ltd
21/07/2017,Training Expenses,Corporate Training,680.00,Cannock Chase District Council
28/06/2017,Hire of Equipment,Central Reprographics,"5,936.81",Canon Uk Ltd
08/06/2017,Hire of Equipment,Central Reprographics,642.36,Canon Uk Ltd
09/09/2017,Hire of Equipment,Central Reprographics,"8,795.92",Canon Uk Ltd
08/06/2017,Hire of Equipment,Central Reprographics,642.36,Canon Uk Ltd
21/06/2017,Hire of Equipment,Central Reprographics,"1,619.07",Canon Uk Ltd
21/06/2017,Hire of Equipment,Central Reprographics,"1,619.07",Canon Uk Ltd
08/06/2017,Hire of Equipment,Central Reprographics,"7,176.85",Canon Uk Ltd
08/06/2017,Training Expenses,Housing Benefits Admin,"1,900.00",Capita Business Services Ltd
07/09/2017,Rents,Sports Development Project,750.00,Carver Road Community Centre
19/07/2017,Repairs & Maintenance to Buildings,Burton Town Hall Civic Building,710.00,Catering Maintenance LLP
29/06/2017,Direct Purchases,DSO Stores Account,"30,918.08",Central Fuel Oils
17/07/2017,Abandoned Vehicles,Enforcement Section,505.00,CGM Recovery
06/06/2017,Other Equipment,Meadowside Leisure Centre,597.62,Chubb Fire & Security
27/07/2017,Other Equipment,Uttoxeter Leisure Centre,528.00,City Electrical Factors Ltd
03/08/2017,Service Level Agreement,Community and Civil Enforcement,"1,853.50",City Of Stoke On Trent
22/06/2017,Advertising,Cultural Services Marketing,"1,100.00",City Of Stoke On Trent
19/06/2017,Training Expenses,Council Tax Collection,"2,700.00",Civica Uk Ltd
04/07/2017,Contributions to Other Bodies,Enterprise,"2,500.00",Clide Limited
02/07/2017,Temporary Staff Costs,Recycling,"3,915.70",Comensura Ltd
13/08/2017,Temporary Staff Costs,Recycling,"5,917.90",Comensura Ltd
10/09/2017,Temporary Staff Costs,Recycling,"6,332.90",Comensura Ltd
17/09/2017,Temporary Staff Costs,Recycling,"6,935.20",Comensura Ltd
30/07/2017,Temporary Staff Costs,Recycling,"6,346.24",Comensura Ltd
27/08/2017,Temporary Staff Costs,Recycling,"6,199.67",Comensura Ltd
03/09/2017,Temporary Staff Costs,Recycling,"6,406.77",Comensura Ltd
09/07/2017,Temporary Staff Costs,Recycling,"4,262.43",Comensura Ltd
25/06/2017,Temporary Staff Costs,Recycling,"3,536.96",Comensura Ltd
19/07/2017,Temporary Staff Costs,Recycling,"4,592.67",Comensura Ltd
06/08/2017,Temporary Staff Costs,Recycling,"4,923.85",Comensura Ltd
18/06/2017,Temporary Staff Costs,Recycling,"4,184.87",Comensura Ltd
26/07/2017,Temporary Staff Costs,Recycling,"4,105.09",Comensura Ltd
23/08/2017,Temporary Staff Costs,Recycling,"6,027.87",Comensura Ltd
30/07/2017,Temporary Staff Costs,Refuse Collection,822.53,Comensura Ltd
19/07/2017,Temporary Staff Costs,Refuse Collection,"1,560.76",Comensura Ltd
27/08/2017,Temporary Staff Costs,Refuse Collection,"2,354.41",Comensura Ltd
13/08/2017,Temporary Staff Costs,Refuse Collection,"2,021.19",Comensura Ltd
09/07/2017,Temporary Staff Costs,Refuse Collection,"1,380.76",Comensura Ltd
03/09/2017,Temporary Staff Costs,Refuse Collection,"3,826.65",Comensura Ltd
02/07/2017,Temporary Staff Costs,Refuse Collection,"2,877.83",Comensura Ltd
10/09/2017,Temporary Staff Costs,Refuse Collection,"1,489.88",Comensura Ltd
23/08/2017,Temporary Staff Costs,Refuse Collection,"1,196.74",Comensura Ltd
25/06/2017,Temporary Staff Costs,Refuse Collection,"2,635.77",Comensura Ltd
17/09/2017,Temporary Staff Costs,Refuse Collection,"1,897.19",Comensura Ltd
26/07/2017,Temporary Staff Costs,Refuse Collection,"4,055.89",Comensura Ltd
06/08/2017,Temporary Staff Costs,Refuse Collection,"1,453.49",Comensura Ltd
18/06/2017,Temporary Staff Costs,Refuse Collection,"2,414.42",Comensura Ltd
19/07/2017,Temporary Staff Costs,Street Cleaning,"1,239.90",Comensura Ltd
18/06/2017,Temporary Staff Costs,Street Cleaning,"1,237.97",Comensura Ltd
10/09/2017,Temporary Staff Costs,Street Cleaning,900.24,Comensura Ltd
03/09/2017,Temporary Staff Costs,Street Cleaning,"1,227.61",Comensura Ltd
26/07/2017,Temporary Staff Costs,Street Cleaning,907.33,Comensura Ltd
23/08/2017,Temporary Staff Costs,Street Cleaning,743.94,Comensura Ltd
17/09/2017,Temporary Staff Costs,Street Cleaning,"1,145.76",Comensura Ltd
02/07/2017,Temporary Staff Costs,Street Cleaning,661.28,Comensura Ltd
27/08/2017,Temporary Staff Costs,Street Cleaning,"1,145.76",Comensura Ltd
30/07/2017,Temporary Staff Costs,Street Cleaning,"1,458.48",Comensura Ltd
25/06/2017,Temporary Staff Costs,Street Cleaning,"1,074.58",Comensura Ltd
09/07/2017,Temporary Staff Costs,Street Cleaning,743.94,Comensura Ltd
30/07/2017,Temporary Staff Costs,Trade Waste Recycling,581.94,Comensura Ltd
30/05/2017,Repairs & Maintenance to Buildings,Facilities Management,"2,944.37",Coytes Carpets Ltd
21/06/2017,Consultants,Planning Delivery,"3,000.00",CP Viability Ltd
16/08/2017,Provision of Wheelie Bins,Recycling,"12,012.00",Craemer UK Limited
23/05/2017,Professional Theatre Fees,Brewhouse Arts Centre,"2,000.00",Craftspace
12/07/2017,Other Equipment,Sports Development Project,730.50,Creative Wear & Embroidery Ltd
08/09/2017,Grounds Maintenance,Open Spaces,"1,470.00",D Mccarthy Bros (Lichfield) Ltd
10/07/2017,Car Parks Maintenance,Open Spaces,900.00,D Mccarthy Bros (Lichfield) Ltd
18/09/2017,Car Parks Maintenance,Open Spaces,"4,870.00",D Mccarthy Bros (Lichfield) Ltd
19/09/2017,Repairs & Maintenance to Buildings,Cemeteries,500.00,D S K Engineering Services
19/09/2017,Repairs & Maintenance to Buildings,Cemeteries,750.00,D S K Engineering Services
19/09/2017,Repairs & Maintenance to Buildings,Cemeteries,750.00,D S K Engineering Services
19/09/2017,Repairs & Maintenance to Buildings,Cemeteries,"1,000.00",D S K Engineering Services
22/06/2017,Grounds Maintenance,Open Spaces,"1,900.00",D S K Engineering Services
18/09/2017,Grounds Maintenance,Open Spaces,"2,000.00",D S K Engineering Services
18/07/2017,Grounds Maintenance,Open Spaces,"3,530.00",D S K Engineering Services
15/06/2017,Grounds Maintenance,Open Spaces,"4,260.00",D S K Engineering Services
18/09/2017,Grounds Maintenance,Open Spaces,654.00,D S K Engineering Services
12/08/2017,Grounds Maintenance,Open Spaces,"5,000.00",D S K Engineering Services
22/06/2017,Grounds Maintenance,Open Spaces,"2,138.00",D S K Engineering Services
18/09/2017,Grounds Maintenance,Open Spaces,"3,500.00",D S K Engineering Services
22/06/2017,Grounds Maintenance,Open Spaces,"2,270.00",D S K Engineering Services
18/07/2017,Grounds Maintenance,Open Spaces,"1,000.00",D S K Engineering Services
22/06/2017,Grounds Maintenance,Open Spaces,"1,750.00",D S K Engineering Services
18/09/2017,Grounds Maintenance,Open Spaces,"2,900.00",D S K Engineering Services
12/08/2017,Grounds Maintenance,Open Spaces,"3,442.00",D S K Engineering Services
18/09/2017,Grounds Maintenance,Open Spaces,"2,500.00",D S K Engineering Services
12/08/2017,Play Equipment,Open Spaces,"2,000.00",D S K Engineering Services
18/07/2017,Play Equipment,Open Spaces,948.00,D S K Engineering Services
18/09/2017,Play Equipment,Open Spaces,"2,060.00",D S K Engineering Services
15/06/2017,Play Equipment,Open Spaces,"1,770.00",D S K Engineering Services
18/07/2017,Play Equipment,Open Spaces,"3,000.00",D S K Engineering Services
12/08/2017,Play Equipment,Open Spaces,"1,242.00",D S K Engineering Services
03/08/2017,Advertising,Cultural Services Marketing,825.00,Danuk Innovative Gifts Ltd
13/06/2017,Exhibitions/Events,Open Spaces,786.50,David Ogilvie Engineering Ltd
03/07/2017,Rents,County Council Elections,500.00,Denstone Village Hall Committee
03/07/2017,Rents,Parliamentary Elections,500.00,Denstone Village Hall Committee
21/07/2017,Commission on Ticket Sales,Customer Services Centres,542.40,Derbyshire County Council
27/06/2017,Grounds Maintenance,Leisure Centres,"1,900.00",Derwent Fencing
27/06/2017,Miscellaneous Licenses,Uttoxeter Leisure Centre,863.00,Direct Publisher S.L.U.
30/06/2017,Criminal Records Searches,Licensing,748.00,Disclosure & Barring Services
31/07/2017,Criminal Records Searches,Licensing,836.00,Disclosure & Barring Services
31/08/2017,Criminal Records Searches,Licensing,924.00,Disclosure & Barring Services
31/05/2017,Criminal Records Searches,Licensing,"1,056.00",Disclosure & Barring Services
30/06/2017,Criminal Records Searches,Human Resources,536.00,Disclosure & Barring Services
01/07/2017,Electricity,Car Parks - General,834.50,e.on
21/06/2017,Electricity,Millers Lane Depot (ex Trentforce prems),529.16,e.on
23/07/2017,Electricity,Millers Lane Depot (ex Trentforce prems),833.71,e.on
23/08/2017,Electricity,Open Spaces,501.45,e.on
01/07/2017,Electricity,Facilities Management,"9,360.37",e.on
03/07/2017,Electricity,Brewhouse Arts Centre,838.48,Edf Energy 1 Ltd
01/08/2017,Electricity,Brewhouse Arts Centre,839.68,Edf Energy 1 Ltd
14/09/2017,Provision of Wheelie Bins,Refuse Collection,"8,398.00",Egbert H Taylor & Co Ltd
31/07/2017,Printing and Stationery,Electoral Services,"17,721.64",Electoral Reform Services
31/08/2017,Printing and Stationery,Electoral Services,"7,762.49",Electoral Reform Services
30/06/2017,Printing and Stationery,Parliamentary Elections,"1,415.38",Electoral Reform Services
09/05/2017,Printing and Stationery,Parliamentary Elections,"21,742.70",Electoral Reform Services
09/06/2017,Printing and Stationery,Parliamentary Elections,"3,511.42",Electoral Reform Services
09/06/2017,Printing and Stationery,Parliamentary Elections,"17,722.78",Electoral Reform Services
01/08/2017,Security of Premises,Facilities Management,"2,250.00",EMS Security Services Ltd
19/05/2017,Professional Theatre Fees,Brewhouse Arts Centre,"2,338.95",Entertainers Show Providers Ltd
19/07/2017,Repairs & Maintenance to Buildings,Leisure Centres,"3,070.00",Envico Engineering Ltd
15/09/2017,Miscellaneous Licenses,Brewhouse Arts Centre,624.00,EPOS Group (Kent)
11/08/2017,Other Equipment,Environmental Health,"2,846.00",ESU1 Limited
22/06/2017,Professional Support,Cultural Services Delivery Review,"1,800.00",Eversheds Sutherland (International) LLP
05/09/2017,Exhibitions/Events,SPACE,505.00,Fletchers Coaches
31/05/2017,Public Transport - Customer Travel,Meadowside Leisure Centre,"2,460.00",Fletchers Coaches
30/06/2017,Public Transport - Customer Travel,Meadowside Leisure Centre,"2,720.00",Fletchers Coaches
20/07/2017,Public Transport - Customer Travel,Meadowside Leisure Centre,680.00,Fletchers Coaches
24/08/2017,Grounds Maintenance,Shobnall Leisure Complex,533.50,Forbes West Limited
25/08/2017,Contract Payments,Uttoxeter Leisure Centre Capital,"1,340.40",Forbes West Limited
30/06/2017,ICT Departmental Purchases,ICT,650.00,Frontier Software Plc
31/07/2017,Direct Purchases,DSO Stores Account,531.59,Fuel Card Services Ltd
07/07/2017,Other Equipment,Meadowside Leisure Centre,550.00,Gas Alarm Systems Ltd
04/07/2017,Direct Purchases,DSO Stores Account,960.00,Gelpack Excelsior Ltd.
05/07/2017,Direct Purchases,DSO Stores Account,960.00,Gelpack Excelsior Ltd.
10/03/2017,CCTV Manning Contract,Closed Circuit Cameras,864.00,Gold Standard Security Ltd
03/04/2017,CCTV Manning Contract,Closed Circuit Cameras,864.00,Gold Standard Security Ltd
10/03/2017,CCTV Manning Contract,Closed Circuit Cameras,864.00,Gold Standard Security Ltd
28/07/2017,Advertising,Cultural Services Marketing,995.00,Goult Design Ltd
27/05/2017,Advertising,Cultural Services Marketing,735.00,Goult Design Ltd
28/07/2017,Advertising,Cultural Services Marketing,"1,150.00",Goult Design Ltd
11/09/2017,Accommodation Costs - B & B/Hotels,Housing Options - Accommodation,991.25,Grail Court Hotel
18/07/2017,Accommodation Costs - B & B/Hotels,Housing Options - Accommodation,543.36,Grail Court Hotel
02/08/2017,Accommodation Costs - B & B/Hotels,Housing Options - Accommodation,747.12,Grail Court Hotel
30/08/2017,Accommodation Costs - B & B/Hotels,Housing Options - Accommodation,686.25,Grail Court Hotel
04/07/2017,Accommodation Costs - B & B/Hotels,Housing Options - Accommodation,"1,067.50",Grail Court Hotel
30/08/2017,Accommodation Costs - B & B/Hotels,Housing Options - Accommodation,838.75,Grail Court Hotel
02/08/2017,Accommodation Costs - B & B/Hotels,Housing Options - Accommodation,774.54,Grail Court Hotel
04/07/2017,Accommodation Costs - B & B/Hotels,Housing Options - Accommodation,"1,086.72",Grail Court Hotel
30/08/2017,Accommodation Costs - B & B/Hotels,Housing Options - Accommodation,893.70,Grail Court Hotel
04/07/2017,Accommodation Costs - B & B/Hotels,Housing Options - Accommodation,834.12,Grail Court Hotel
04/07/2017,Accommodation Costs - B & B/Hotels,Housing Options - Accommodation,991.25,Grail Court Hotel
20/06/2017,Accommodation Costs - B & B/Hotels,Housing Options - Accommodation,"1,072.44",Grail Court Hotel
18/07/2017,Accommodation Costs - B & B/Hotels,Housing Options - Accommodation,834.12,Grail Court Hotel
04/07/2017,Accommodation Costs - B & B/Hotels,Housing Options - Accommodation,834.12,Grail Court Hotel
01/08/2017,Accommodation Costs - B & B/Hotels,Housing Options - Accommodation,"1,067.50",Grail Court Hotel
02/08/2017,Accommodation Costs - B & B/Hotels,Housing Options - Accommodation,991.25,Grail Court Hotel
20/06/2017,Accommodation Costs - B & B/Hotels,Housing Options - Accommodation,686.25,Grail Court Hotel
01/08/2017,Accommodation Costs - B & B/Hotels,Housing Options - Accommodation,950.88,Grail Court Hotel
20/06/2017,Accommodation Costs - B & B/Hotels,Housing Options - Accommodation,"1,677.50",Grail Court Hotel
15/05/2017,Accommodation Costs - B & B/Hotels,Housing Options - Accommodation,834.12,Grail Court Hotel
30/08/2017,Accommodation Costs - B & B/Hotels,Housing Options - Accommodation,"1,018.80",Grail Court Hotel
03/08/2017,Accommodation Costs - B & B/Hotels,Housing Options - Accommodation,834.12,Grail Court Hotel
20/06/2017,Accommodation Costs - B & B/Hotels,Housing Options - Accommodation,595.80,Grail Court Hotel
20/06/2017,Accommodation Costs - B & B/Hotels,Housing Options - Accommodation,893.70,Grail Court Hotel
18/07/2017,Accommodation Costs - B & B/Hotels,Housing Options - Accommodation,"1,067.50",Grail Court Hotel
11/09/2017,Accommodation Costs - B & B/Hotels,Housing Options - Accommodation,774.54,Grail Court Hotel
27/07/2017,Accommodation Costs - B & B/Hotels,Housing Options - Accommodation,679.20,Grail Court Hotel
11/09/2017,Accommodation Costs - B & B/Hotels,Housing Options - Accommodation,882.96,Grail Court Hotel
18/07/2017,Accommodation Costs - B & B/Hotels,Housing Options - Accommodation,834.12,Grail Court Hotel
24/07/2017,External Audit Fees,External Audit,522.00,Grant Thornton UK LLP
12/06/2017,External Audit Fees,External Audit,"12,212.00",Grant Thornton UK LLP
01/06/2017,Vehicle Maintenance Costs,Recycling,"4,082.21",Gullivers Municipal Hire Services
01/09/2017,Vehicle Maintenance Costs,Recycling,"4,082.21",Gullivers Municipal Hire Services
01/08/2017,Vehicle Maintenance Costs,Recycling,"4,082.21",Gullivers Municipal Hire Services
01/09/2017,Vehicle Maintenance Costs,Recycling,"4,082.21",Gullivers Municipal Hire Services
01/06/2017,Vehicle Maintenance Costs,Recycling,"4,082.21",Gullivers Municipal Hire Services
01/07/2017,Vehicle Maintenance Costs,Recycling,"4,082.21",Gullivers Municipal Hire Services
20/06/2017,Vehicle Maintenance Costs,Recycling,895.00,Gullivers Municipal Hire Services
01/07/2017,Vehicle Maintenance Costs,Recycling,"4,082.21",Gullivers Municipal Hire Services
01/08/2017,Vehicle Maintenance Costs,Recycling,"4,082.21",Gullivers Municipal Hire Services
01/08/2017,Vehicle Maintenance Costs,Recycling,"4,082.21",Gullivers Municipal Hire Services
01/09/2017,Vehicle Maintenance Costs,Recycling,"4,082.21",Gullivers Municipal Hire Services
01/06/2017,Vehicle Maintenance Costs,Recycling,"4,082.21",Gullivers Municipal Hire Services
01/07/2017,Vehicle Maintenance Costs,Recycling,"4,082.21",Gullivers Municipal Hire Services
15/06/2017,Vehicle Maintenance Costs,Recycling,895.00,Gullivers Municipal Hire Services
01/09/2017,Vehicle Maintenance Costs,Recycling,"4,082.21",Gullivers Municipal Hire Services
01/07/2017,Vehicle Maintenance Costs,Recycling,"4,082.21",Gullivers Municipal Hire Services
01/09/2017,Vehicle Maintenance Costs,Recycling,"4,082.21",Gullivers Municipal Hire Services
01/06/2017,Vehicle Maintenance Costs,Recycling,"4,082.21",Gullivers Municipal Hire Services
01/07/2017,Vehicle Maintenance Costs,Recycling,"4,082.21",Gullivers Municipal Hire Services
01/06/2017,Vehicle Maintenance Costs,Recycling,"4,082.21",Gullivers Municipal Hire Services
01/08/2017,Vehicle Maintenance Costs,Recycling,"4,082.21",Gullivers Municipal Hire Services
30/06/2017,Vehicle Maintenance Costs,Recycling,895.00,Gullivers Municipal Hire Services
01/08/2017,Vehicle Maintenance Costs,Recycling,"4,082.21",Gullivers Municipal Hire Services
31/07/2017,Vehicle Hire,Recycling,716.00,Gullivers Municipal Hire Services
26/06/2017,Vehicle Hire,Recycling,895.00,Gullivers Municipal Hire Services
19/07/2017,Vehicle Hire,Recycling,895.00,Gullivers Municipal Hire Services
24/08/2017,Vehicle Hire,Recycling,895.00,Gullivers Municipal Hire Services
12/07/2017,Vehicle Hire,Recycling,895.00,Gullivers Municipal Hire Services
10/07/2017,Vehicle Hire,Recycling,895.00,Gullivers Municipal Hire Services
17/08/2017,Vehicle Hire,Recycling,895.00,Gullivers Municipal Hire Services
24/08/2017,Vehicle Hire,Recycling,895.00,Gullivers Municipal Hire Services
31/08/2017,Vehicle Hire,Recycling,895.00,Gullivers Municipal Hire Services
13/06/2017,Vehicle Hire,Recycling,895.00,Gullivers Municipal Hire Services
01/06/2017,Vehicle Maintenance Costs,Refuse Collection,"3,274.62",Gullivers Municipal Hire Services
01/08/2017,Vehicle Maintenance Costs,Refuse Collection,"3,274.62",Gullivers Municipal Hire Services
01/06/2017,Vehicle Maintenance Costs,Refuse Collection,"3,274.62",Gullivers Municipal Hire Services
01/08/2017,Vehicle Maintenance Costs,Refuse Collection,"3,274.62",Gullivers Municipal Hire Services
01/08/2017,Vehicle Maintenance Costs,Refuse Collection,"2,595.80",Gullivers Municipal Hire Services
01/09/2017,Vehicle Maintenance Costs,Refuse Collection,"3,274.62",Gullivers Municipal Hire Services
28/04/2017,Vehicle Maintenance Costs,Refuse Collection,749.55,Gullivers Municipal Hire Services
01/06/2017,Vehicle Maintenance Costs,Refuse Collection,"2,595.80",Gullivers Municipal Hire Services
01/06/2017,Vehicle Maintenance Costs,Refuse Collection,"3,274.62",Gullivers Municipal Hire Services
01/08/2017,Vehicle Maintenance Costs,Refuse Collection,"3,274.62",Gullivers Municipal Hire Services
01/07/2017,Vehicle Maintenance Costs,Refuse Collection,"3,274.62",Gullivers Municipal Hire Services
01/09/2017,Vehicle Maintenance Costs,Refuse Collection,"3,274.62",Gullivers Municipal Hire Services
01/07/2017,Vehicle Maintenance Costs,Refuse Collection,"3,274.62",Gullivers Municipal Hire Services
01/06/2017,Vehicle Maintenance Costs,Refuse Collection,"3,274.62",Gullivers Municipal Hire Services
01/06/2017,Vehicle Maintenance Costs,Refuse Collection,"3,274.62",Gullivers Municipal Hire Services
01/08/2017,Vehicle Maintenance Costs,Refuse Collection,798.00,Gullivers Municipal Hire Services
01/09/2017,Vehicle Maintenance Costs,Refuse Collection,"3,274.62",Gullivers Municipal Hire Services
01/09/2017,Vehicle Maintenance Costs,Refuse Collection,"3,274.62",Gullivers Municipal Hire Services
01/07/2017,Vehicle Maintenance Costs,Refuse Collection,"3,274.62",Gullivers Municipal Hire Services
01/07/2017,Vehicle Maintenance Costs,Refuse Collection,"3,274.62",Gullivers Municipal Hire Services
01/09/2017,Vehicle Maintenance Costs,Refuse Collection,"2,595.80",Gullivers Municipal Hire Services
01/06/2017,Vehicle Maintenance Costs,Refuse Collection,"3,274.62",Gullivers Municipal Hire Services
01/08/2017,Vehicle Maintenance Costs,Refuse Collection,"3,274.62",Gullivers Municipal Hire Services
01/07/2017,Vehicle Maintenance Costs,Refuse Collection,"2,595.80",Gullivers Municipal Hire Services
01/08/2017,Vehicle Maintenance Costs,Refuse Collection,"3,274.62",Gullivers Municipal Hire Services
01/07/2017,Vehicle Maintenance Costs,Refuse Collection,"3,274.62",Gullivers Municipal Hire Services
01/07/2017,Vehicle Maintenance Costs,Refuse Collection,"3,274.62",Gullivers Municipal Hire Services
01/09/2017,Vehicle Maintenance Costs,Refuse Collection,"3,274.62",Gullivers Municipal Hire Services
01/09/2017,Vehicle Maintenance Costs,Refuse Collection,798.00,Gullivers Municipal Hire Services
01/08/2017,Vehicle Maintenance Costs,Refuse Collection,"3,274.62",Gullivers Municipal Hire Services
01/07/2017,Vehicle Maintenance Costs,Refuse Collection,"3,274.62",Gullivers Municipal Hire Services
01/06/2017,Vehicle Maintenance Costs,Refuse Collection,"3,274.62",Gullivers Municipal Hire Services
01/08/2017,Vehicle Maintenance Costs,Refuse Collection,"3,274.62",Gullivers Municipal Hire Services
01/09/2017,Vehicle Maintenance Costs,Refuse Collection,"3,274.62",Gullivers Municipal Hire Services
07/07/2017,Vehicle Maintenance Costs,Refuse Collection,"1,644.38",Gullivers Municipal Hire Services
01/07/2017,Vehicle Maintenance Costs,Refuse Collection,798.00,Gullivers Municipal Hire Services
01/09/2017,Vehicle Maintenance Costs,Refuse Collection,"3,274.62",Gullivers Municipal Hire Services
01/06/2017,Vehicle Maintenance Costs,Street Cleaning,"1,785.32",Gullivers Municipal Hire Services
01/07/2017,Vehicle Maintenance Costs,Street Cleaning,"1,785.32",Gullivers Municipal Hire Services
01/06/2017,Vehicle Maintenance Costs,Street Cleaning,"1,785.32",Gullivers Municipal Hire Services
01/07/2017,Vehicle Maintenance Costs,Street Cleaning,"1,785.32",Gullivers Municipal Hire Services
01/09/2017,Vehicle Maintenance Costs,Street Cleaning,632.89,Gullivers Municipal Hire Services
01/08/2017,Vehicle Maintenance Costs,Street Cleaning,"1,785.32",Gullivers Municipal Hire Services
01/06/2017,Vehicle Maintenance Costs,Street Cleaning,"1,785.32",Gullivers Municipal Hire Services
01/07/2017,Vehicle Maintenance Costs,Street Cleaning,632.89,Gullivers Municipal Hire Services
01/09/2017,Vehicle Maintenance Costs,Street Cleaning,"1,785.32",Gullivers Municipal Hire Services
01/06/2017,Vehicle Maintenance Costs,Street Cleaning,632.89,Gullivers Municipal Hire Services
01/07/2017,Vehicle Maintenance Costs,Street Cleaning,"2,324.76",Gullivers Municipal Hire Services
01/06/2017,Vehicle Maintenance Costs,Street Cleaning,713.46,Gullivers Municipal Hire Services
01/09/2017,Vehicle Maintenance Costs,Street Cleaning,"1,785.32",Gullivers Municipal Hire Services
01/06/2017,Vehicle Maintenance Costs,Street Cleaning,"2,324.76",Gullivers Municipal Hire Services
01/08/2017,Vehicle Maintenance Costs,Street Cleaning,"1,785.32",Gullivers Municipal Hire Services
01/09/2017,Vehicle Maintenance Costs,Street Cleaning,"2,324.76",Gullivers Municipal Hire Services
01/07/2017,Vehicle Maintenance Costs,Street Cleaning,713.46,Gullivers Municipal Hire Services
01/06/2017,Vehicle Maintenance Costs,Street Cleaning,632.89,Gullivers Municipal Hire Services
01/09/2017,Vehicle Maintenance Costs,Street Cleaning,"1,785.32",Gullivers Municipal Hire Services
01/07/2017,Vehicle Maintenance Costs,Street Cleaning,"1,785.32",Gullivers Municipal Hire Services
01/08/2017,Vehicle Maintenance Costs,Street Cleaning,"2,324.76",Gullivers Municipal Hire Services
01/09/2017,Vehicle Maintenance Costs,Street Cleaning,713.46,Gullivers Municipal Hire Services
01/09/2017,Vehicle Maintenance Costs,Street Cleaning,632.89,Gullivers Municipal Hire Services
01/06/2017,Vehicle Maintenance Costs,Street Cleaning,"2,324.76",Gullivers Municipal Hire Services
01/08/2017,Vehicle Maintenance Costs,Street Cleaning,"1,785.32",Gullivers Municipal Hire Services
01/08/2017,Vehicle Maintenance Costs,Street Cleaning,713.46,Gullivers Municipal Hire Services
20/06/2017,Vehicle Maintenance Costs,Street Cleaning,"2,019.87",Gullivers Municipal Hire Services
01/08/2017,Vehicle Maintenance Costs,Street Cleaning,713.46,Gullivers Municipal Hire Services
01/08/2017,Vehicle Maintenance Costs,Street Cleaning,"2,324.76",Gullivers Municipal Hire Services
01/07/2017,Vehicle Maintenance Costs,Street Cleaning,713.46,Gullivers Municipal Hire Services
01/06/2017,Vehicle Maintenance Costs,Street Cleaning,713.46,Gullivers Municipal Hire Services
01/09/2017,Vehicle Maintenance Costs,Street Cleaning,"1,785.32",Gullivers Municipal Hire Services
01/07/2017,Vehicle Maintenance Costs,Street Cleaning,632.89,Gullivers Municipal Hire Services
01/08/2017,Vehicle Maintenance Costs,Street Cleaning,632.89,Gullivers Municipal Hire Services
01/09/2017,Vehicle Maintenance Costs,Street Cleaning,713.46,Gullivers Municipal Hire Services
01/08/2017,Vehicle Maintenance Costs,Street Cleaning,632.89,Gullivers Municipal Hire Services
01/09/2017,Vehicle Maintenance Costs,Street Cleaning,"2,324.76",Gullivers Municipal Hire Services
01/07/2017,Vehicle Maintenance Costs,Street Cleaning,"1,785.32",Gullivers Municipal Hire Services
01/08/2017,Vehicle Maintenance Costs,Street Cleaning,"1,785.32",Gullivers Municipal Hire Services
01/06/2017,Vehicle Maintenance Costs,Street Cleaning,632.89,Gullivers Municipal Hire Services
01/08/2017,Vehicle Maintenance Costs,Street Cleaning,632.89,Gullivers Municipal Hire Services
01/09/2017,Vehicle Maintenance Costs,Street Cleaning,632.89,Gullivers Municipal Hire Services
01/07/2017,Vehicle Maintenance Costs,Street Cleaning,632.89,Gullivers Municipal Hire Services
01/07/2017,Vehicle Maintenance Costs,Street Cleaning,"2,324.76",Gullivers Municipal Hire Services
01/06/2017,Vehicle Maintenance Costs,Street Cleaning,"1,785.32",Gullivers Municipal Hire Services
01/06/2017,Vehicle Maintenance Costs,Trade Waste Recycling,"3,274.62",Gullivers Municipal Hire Services
01/09/2017,Vehicle Maintenance Costs,Trade Waste Recycling,"3,274.62",Gullivers Municipal Hire Services
01/08/2017,Vehicle Maintenance Costs,Trade Waste Recycling,"3,274.62",Gullivers Municipal Hire Services
01/07/2017,Vehicle Maintenance Costs,Trade Waste Recycling,"3,274.62",Gullivers Municipal Hire Services
14/07/2017,Vehicle Maintenance Costs,Trade Waste Recycling,"2,181.92",Gullivers Municipal Hire Services
15/09/2017,Other Equipment,Meadowside Leisure Centre,999.50,Gymnova (U.K.) Ltd.
15/09/2017,Other Equipment,Uttoxeter Leisure Centre,999.50,Gymnova (U.K.) Ltd.
06/09/2017,Terms Maintenance,Open Spaces,650.00,H & G Ash Roadmarkings Ltd
14/06/2017,Terms Maintenance,Open Spaces,541.00,H & G Ash Roadmarkings Ltd
23/06/2017,Play Equipment,Open Spaces,"2,792.85",HAGS SMP Ltd
10/08/2017,Grounds Maintenance,Open Spaces,930.00,Halton Print & Promotional
17/07/2017,Repairs & Maintenance to Buildings,Enterprise,"2,376.00",Hardy Signs Ltd
19/06/2017,Signs,Burton Retail Market,655.00,Hardy Signs Ltd
17/08/2017,Grounds Maintenance,Open Spaces,520.00,Hardy Signs Ltd
06/07/2017,Exhibitions/Events,Open Spaces,"1,632.00",Hardy Signs Ltd
13/07/2017,Dangerous Structures,Building Consultancy Non-Chargeable Activities,940.00,Harvey & Clark Ltd
14/08/2017,Depot Costs,Millers Lane Depot (ex Trentforce prems),"2,260.00",Harvey & Clark Ltd
20/08/2017,Recruitment Costs,Planning Delivery,"1,920.00",Havas People Ltd
23/05/2017,Subscriptions,Planning Delivery,950.00,Haymarket Media Group Ltd
19/06/2017,Subscriptions,Chief Executive,595.00,Hemming Group Ltd
01/08/2017,Medical Examinations,Human Resources,563.33,Hobson Health
01/07/2017,Medical Examinations,Human Resources,563.33,Hobson Health
01/09/2017,Medical Examinations,Human Resources,563.33,Hobson Health
29/01/2016,Repairs & Maintenance to Buildings,Brewhouse Arts Centre,540.16,Honeywell Control Systems Ltd
04/05/2016,Maintenance Contracts,Brewhouse Arts Centre,"3,451.94",Honeywell Control Systems Ltd
21/10/2016,Maintenance Contracts,Brewhouse Arts Centre,640.93,Honeywell Control Systems Ltd
17/09/2017,Contracted Grounds Maintenance,Cemeteries,"9,071.41",Idverde Limited
31/05/2017,Contracted Grounds Maintenance,Cemeteries,"1,863.96",Idverde Limited
26/06/2017,Contracted Grounds Maintenance,Cemeteries,"8,414.82",Idverde Limited
28/06/2017,Contracted Grounds Maintenance,Cemeteries,"2,325.08",Idverde Limited
29/05/2017,Contracted Grounds Maintenance,Cemeteries,"8,451.97",Idverde Limited
29/05/2017,Contracted Grounds Maintenance,Cemeteries,"8,457.94",Idverde Limited
24/07/2017,Contracted Grounds Maintenance,Cemeteries,"8,393.69",Idverde Limited
28/04/2017,Contracted Grounds Maintenance,Cemeteries,"1,540.01",Idverde Limited
28/02/2017,Grounds Maintenance,Land Drainage,"1,344.00",Idverde Limited
27/07/2017,Grounds Maintenance,Land Drainage,"1,648.88",Idverde Limited
31/03/2017,Grounds Maintenance,Land Drainage,"1,920.00",Idverde Limited
31/01/2017,Contracted Grounds Maintenance,Land Drainage,"1,207.00",Idverde Limited
10/08/2017,Grounds Maintenance,Open Spaces,"12,027.36",Idverde Limited
31/07/2017,Terms Maintenance,Open Spaces,"9,192.44",Idverde Limited
31/07/2017,Contracted Grounds Maintenance,Open Spaces,"2,574.29",Idverde Limited
24/07/2017,Contracted Grounds Maintenance,Open Spaces,"53,667.81",Idverde Limited
31/05/2017,Contracted Grounds Maintenance,Open Spaces,"5,184.32",Idverde Limited
29/05/2017,Contracted Grounds Maintenance,Open Spaces,"59,910.06",Idverde Limited
28/06/2017,Contracted Grounds Maintenance,Open Spaces,"13,230.34",Idverde Limited
31/05/2017,Contracted Grounds Maintenance,Open Spaces,"2,904.21",Idverde Limited
28/06/2017,Contracted Grounds Maintenance,Open Spaces,"3,494.11",Idverde Limited
28/04/2017,Contracted Grounds Maintenance,Open Spaces,"3,814.03",Idverde Limited
17/09/2017,Contracted Grounds Maintenance,Open Spaces,"78,667.56",Idverde Limited
17/09/2017,Contracted Grounds Maintenance,Open Spaces,"7,893.70",Idverde Limited
24/07/2017,Contracted Grounds Maintenance,Open Spaces,"5,133.86",Idverde Limited
26/06/2017,Contracted Grounds Maintenance,Open Spaces,"7,463.78",Idverde Limited
28/04/2017,Contracted Grounds Maintenance,Open Spaces,"9,190.34",Idverde Limited
31/07/2017,Contracted Grounds Maintenance,Open Spaces,"3,285.51",Idverde Limited
26/06/2017,Contracted Grounds Maintenance,Open Spaces,"53,901.62",Idverde Limited
29/05/2017,Contracted Grounds Maintenance,Open Spaces,"5,055.86",Idverde Limited
08/08/2017,Contracted Grounds Maintenance,Open Spaces,670.00,Idverde Limited
02/08/2017,Car Park Income,High Street Non Retained,"5,012.06",Iliffe News & Media
02/08/2017,General Grants,Play Schemes,530.00,Inflatamania
24/07/2017,Members Expenses - Information Commissioner,Members Allowances & Expenses,500.00,Information Commissioner
15/09/2017,Other Equipment,Recycling,533.04,Insight Direct Uk
15/09/2017,Other Equipment,Refuse Collection,533.04,Insight Direct Uk
22/08/2017,ICT Departmental Purchases,ICT,525.10,Insight Direct Uk
21/08/2017,ICT Departmental Purchases,ICT,"1,777.38",Insight Direct Uk
13/07/2017,Other Equipment,Meadowside Leisure Centre,"2,700.00",Integrated BMS Ltd
01/09/2017,Rents,Open Spaces,"2,500.00",J T Leavesley Limited
31/07/2017,Cash Collection Security Services,Car Parks - General,"3,608.10",Jade Security Services Ltd
30/06/2017,Cash Collection Security Services,Car Parks - General,"3,824.70",Jade Security Services Ltd
31/08/2017,Cash Collection Security Services,Car Parks - General,"3,648.00",Jade Security Services Ltd
14/07/2017,Direct Purchases,DSO Stores Account,705.50,JBS Group
18/08/2017,Contract Payments,Brewhouse Arts Centre,"3,980.00",JPS Refrigeration Ltd
31/08/2017,"Clothing, Uniforms and Laundry",Customer Services Centres,"1,340.95",Keltic
31/07/2017,Legal Costs,Planning Delivery,700.00,Kings Chambers
04/09/2017,Legal Costs,Planning Delivery,800.00,Kings Chambers
07/08/2017,Legal Costs,Planning Delivery,"1,000.00",Kings Chambers
14/06/2017,Other Equipment,Meadowside Leisure Centre,995.00,Laerdal Medical Limited
23/06/2017,Repairs & Maintenance to Buildings,Facilities Management,"1,043.00",Lantei Electrical Compliance Ltd
04/07/2017,Grounds Maintenance,Leisure Centres,747.00,Leicestershire C C (Espo)
25/08/2017,Training Expenses,Corporate Training,878.30,Leisure-Net-Solutions Ltd
01/09/2017,Repairs & Maintenance to Buildings,Leisure Centres,"2,034.00",Leisure-Net-Solutions Ltd
17/07/2017,Swim Water Treatment,Uttoxeter Leisure Centre,695.20,Leisureteq
19/06/2017,Books and Publications,Electoral Services,981.00,Lexis Nexis Butterworths
17/07/2017,Consultants,Council Tax Collection,"2,519.09",Liberata Uk Ltd t/a CapacityGRID
04/08/2017,Consultants,Council Tax Collection,"6,788.26",Liberata Uk Ltd t/a CapacityGRID
05/07/2017,Other Expenses,Brewhouse Community Ticket Sales,"3,650.00",Little Theatre Company
28/07/2017,Advertising,Cultural Services Marketing,546.00,Local Surgery Links
18/06/2017,Advertising,Car Parks - General,"1,425.44",Local World Ltd
23/07/2017,Advertising,Car Parks - General,"1,426.63",Local World Ltd
16/07/2017,Advertising,Planning Delivery,524.50,Local World Ltd
27/08/2017,Advertising,Planning Delivery,545.48,Local World Ltd
18/06/2017,Advertising,Planning Delivery,723.81,Local World Ltd
09/07/2017,Advertising,Planning Delivery,524.50,Local World Ltd
09/07/2017,Advertising,Environmental Health,744.64,Local World Ltd
28/09/2017,Advertising,Environmental Health,"1,004.89",Local World Ltd
25/06/2017,Advertising,Environmental Health,735.64,Local World Ltd
20/08/2017,Advertising,Environmental Health,738.89,Local World Ltd
25/06/2017,Advertising,Environmental Health,"1,091.64",Local World Ltd
31/07/2017,Advertising,Environmental Health,"1,004.89",Local World Ltd
31/08/2017,Advertising,Environmental Health,943.78,Local World Ltd
31/07/2017,Advertising,Environmental Health,738.89,Local World Ltd
31/08/2017,Advertising,Environmental Health,"1,485.28",Local World Ltd
11/05/2017,Repairs & Maintenance to Buildings,Public Conveniences,524.00,Loo of the Year Awards Ltd
17/08/2017,Training Expenses,Corporate Training,"1,350.00",Loughborough College
30/06/2017,Electricity,Meadowside Leisure Centre,"2,412.45",Low Carbon Solutions Ltd
31/07/2017,Electricity,Meadowside Leisure Centre,"2,449.61",Low Carbon Solutions Ltd
31/08/2017,Electricity,Meadowside Leisure Centre,"2,578.28",Low Carbon Solutions Ltd
31/07/2017,Printing and Stationery,Central Reprographics,541.23,Lyreco Uk Ltd
31/05/2017,Printing and Stationery,Central Reprographics,804.86,Lyreco Uk Ltd
30/06/2017,Printing and Stationery,Central Reprographics,619.28,Lyreco Uk Ltd
18/09/2017,Other Equipment,Meadowside Leisure Centre,665.00,M W Cripwell Ltd
31/08/2017,Other Equipment,Meadowside Leisure Centre,"2,283.00",M W Cripwell Ltd
09/06/2017,Repairs & Maintenance to Buildings,Facilities Management,535.00,M W Cripwell Ltd
30/08/2017,Fees and Charges,Planning Delivery,"1,540.00",Maintenance Painting Systems Ltd
09/08/2017,Advertising,Cultural Services Marketing,"2,994.00",Make Sport Fun Ltd
11/08/2017,Printing and Stationery,Electoral Services,700.00,Mallina Group
31/08/2017,Grounds Maintenance,Leisure Centres,"1,368.50",Mark Harrod Ltd
29/06/2017,Catering Supplies,Brewhouse Cafe/Bar,758.87,Marston�s Plc
07/09/2017,Catering Supplies,Brewhouse Cafe/Bar,"1,576.08",Marston�s Plc
22/06/2017,Catering Supplies,Brewhouse Cafe/Bar,530.64,Marston�s Plc
07/07/2017,Temporary Staff Costs,Planning Delivery,"2,458.50",Matchtech Group Plc
06/06/2017,Temporary Staff Costs,Planning Delivery,"1,732.50",Matchtech Group Plc
07/07/2017,Temporary Staff Costs,Planning Delivery,"2,178.00",Matchtech Group Plc
07/08/2017,Temporary Staff Costs,Planning Delivery,"2,953.50",Matchtech Group Plc
07/07/2017,Temporary Staff Costs,Planning Delivery,"1,683.00",Matchtech Group Plc
01/06/2017,Temporary Staff Costs,Planning Delivery,"1,749.00",Matchtech Group Plc
07/07/2017,Temporary Staff Costs,Planning Delivery,"2,161.50",Matchtech Group Plc
07/07/2017,Temporary Staff Costs,Planning Delivery,"2,046.00",Matchtech Group Plc
07/08/2017,Temporary Staff Costs,Planning Delivery,"2,590.50",Matchtech Group Plc
07/07/2017,Temporary Staff Costs,Planning Delivery,"2,260.50",Matchtech Group Plc
07/07/2017,Temporary Staff Costs,Planning Delivery,"2,145.00",Matchtech Group Plc
01/06/2017,Temporary Staff Costs,Planning Delivery,"2,310.00",Matchtech Group Plc
07/08/2017,Temporary Staff Costs,Planning Delivery,"2,640.00",Matchtech Group Plc
07/08/2017,Temporary Staff Costs,Planning Delivery,"2,706.00",Matchtech Group Plc
01/06/2017,Temporary Staff Costs,Planning Delivery,"2,244.00",Matchtech Group Plc
07/07/2017,Temporary Staff Costs,Planning Delivery,"2,310.00",Matchtech Group Plc
05/09/2017,Consultants,Cultural Services Delivery Review,"7,987.50",Max Associates
16/06/2017,Consultants,Cultural Services Delivery Review,"15,975.00",Max Associates
18/07/2017,"Fertilisers, Weedkiller and Insecticides",Street Cleaning,854.28,Maxwell Amenity Ltd
21/06/2017,"Fertilisers, Weedkiller and Insecticides",Street Cleaning,512.40,Maxwell Amenity Ltd
23/08/2017,Play Equipment,Open Spaces,942.97,Medway Galvanising Company Ltd
29/06/2017,Play Equipment,Open Spaces,976.05,Medway Galvanising Company Ltd
01/09/2017,Repairs and Maintenance of Car Park Ticket Machines,Car Parks - General,"2,889.60",Metric Group Limited
08/09/2017,Repairs and Maintenance of Car Park Ticket Machines,Community and Civil Enforcement,"1,067.50",Metric Group Limited
31/07/2017,Grounds Maintenance,Shobnall Leisure Complex,538.00,Midland Control Systems
09/08/2017,Promotional Materials,Community and Civil Enforcement,895.00,Mobile Screenwipe Ltd
28/07/2017,Taxi Panels,Licensing,"1,472.00",Mogo Uk
06/08/2017,Grounds Maintenance,Open Spaces,"1,285.00",MonsterMulch
21/06/2017,Grounds Maintenance,Open Spaces,933.80,MonsterMulch
05/09/2017,Kenneling & Other Expenses,Pest Control & Animal Welfare,640.17,Noah�s Ark Environmental Services Ltd
10/07/2017,Kenneling & Other Expenses,Pest Control & Animal Welfare,567.00,Noah�s Ark Environmental Services Ltd
08/06/2017,Kenneling & Other Expenses,Pest Control & Animal Welfare,"1,270.00",Noah�s Ark Environmental Services Ltd
31/08/2017,Consumable Materials,Facilities Management,807.40,Nobisco Limited
30/06/2017,Temporary Staff Costs,Housing Benefits Admin,"2,400.00",Northgate Public Services (Uk) Ltd
26/07/2017,Temporary Staff Costs,Housing Benefits Admin,800.00,Northgate Public Services (Uk) Ltd
01/08/2017,Temporary Staff Costs,Housing Benefits Admin,"2,240.00",Northgate Public Services (Uk) Ltd
31/07/2017,Temporary Staff Costs,Housing Benefits Admin,"2,400.00",Northgate Public Services (Uk) Ltd
31/08/2017,Temporary Staff Costs,Housing Benefits Admin,"2,240.00",Northgate Public Services (Uk) Ltd
29/07/2017,Grounds Maintenance,Open Spaces,650.00,Nova Sport Ltd
05/07/2017,Play Equipment,Open Spaces,"1,596.00",Nova Sport Ltd
11/07/2017,Repairs & Maintenance to Buildings,Facilities Management,"2,574.00",Novus Property Solutions Ltd
01/08/2017,Direct Purchases,DSO Stores Account,"6,308.14",NWF Fuels Ltd
01/08/2017,Direct Purchases,DSO Stores Account,"20,584.98",NWF Fuels Ltd
17/07/2017,Repairs & Maintenance to Buildings,Shobnall Leisure Complex,890.00,Oconnor Electrical Ltd
17/07/2017,Grounds Maintenance,Leisure Centres,"1,007.53",Oconnor Electrical Ltd
08/06/2017,Professional Theatre Fees,Brewhouse Arts Centre,"2,072.02",Off The Kerb Productions
19/06/2017,Professional Theatre Fees,Brewhouse Arts Centre,"5,163.75",Off The Kerb Productions
02/08/2017,Other Homeless Prevention,Housing Options,"1,373.25",Orbit Heart of England HA
13/07/2017,Professional Support,Facilities Management,"2,500.00",Patrick Parsons Ltd
14/08/2017,Professional Support,Facilities Management,"6,100.00",Patrick Parsons Ltd
20/07/2017,Other Expenses,Brewhouse Community Ticket Sales,"4,644.00",Performing Stars Academy Limited
12/06/2017,Pest Control Contracts,Facilities Management,"1,080.00",Pest Express Ltd
24/08/2017,Maintenance Contracts,Public Conveniences,"2,025.22",PHS Group Plc
03/08/2017,Franking Machine Postages,Central Reprographics,"3,794.76",Pitney Bowes Finance Limited
05/07/2017,System Maintenance,ICT,"5,976.00",Pitney Bowes Software Ltd
22/08/2017,Repairs & Maintenance to Buildings,Facilities Management,"3,031.57",Power Control Ltd
26/06/2017,Professional Support,Facilities Management,"5,500.00",Pozzoni LLP
25/05/2017,Project Work,Facilities Management,"7,000.00",Pozzoni LLP
05/09/2017,Rents,Millers Lane Depot (ex Trentforce prems),"6,562.50",Preston Securities Limited
10/04/2017,Miscellaneous Licenses,Burton Town Hall Civic Building,"1,027.21",PRS for Music
10/06/2017,Miscellaneous Licenses,Brewhouse Arts Centre,987.61,PRS for Music
12/09/2017,Miscellaneous Licenses,Brewhouse Arts Centre,657.10,PRS for Music
22/08/2017,Franking Machine Postages,Central Reprographics,"10,000.00",Purchase Power
22/06/2017,Franking Machine Postages,Central Reprographics,"5,009.00",Purchase Power
11/07/2017,Franking Machine Postages,Central Reprographics,"3,267.70",Purchase Power
22/07/2017,Franking Machine Postages,Central Reprographics,"5,009.00",Purchase Power
30/08/2017,Christmas Decorations,Grants for Tourism,"3,000.00",Pyrotex Fireworx Ltd
25/08/2017,Hire of Equipment,Closed Circuit Cameras,"1,211.00",Quadrant Security Group
15/06/2017,Maintenance Agreements,Closed Circuit Cameras,"10,181.14",Quadrant Security Group
19/07/2017,Maintenance Agreements,Closed Circuit Cameras,"1,601.00",Quadrant Security Group
22/06/2017,Maintenance Agreements,Closed Circuit Cameras,780.00,Quadrant Security Group
07/09/2017,Maintenance Agreements,Closed Circuit Cameras,"1,055.00",Quadrant Security Group
31/08/2017,Rents,Sports Development Project,600.00,Queen Street Community Centre
04/07/2017,Conference Expenses,Heads of Service,558.00,Redactive Events Ltd
30/06/2017,Promotional Materials,Community and Civil Enforcement,573.00,Reflex Print & Design
31/08/2017,Scanning,Planning Delivery,"3,272.80",Resolution Data Management Ltd
31/05/2017,Scanning,Planning Delivery,"3,005.47",Resolution Data Management Ltd
31/05/2017,Scanning,Planning Delivery,884.07,Resolution Data Management Ltd
30/06/2017,Scanning,Planning Delivery,"2,982.10",Resolution Data Management Ltd
31/07/2017,Scanning,Planning Delivery,"3,164.37",Resolution Data Management Ltd
31/08/2017,Scanning,Planning Delivery,816.86,Resolution Data Management Ltd
26/07/2017,Other Equipment,Burton Retail Market,630.00,RJS Electrical Solutions Ltd
24/08/2017,Other Equipment,Uttoxeter Leisure Centre,"1,046.40",RJS Electrical Solutions Ltd
04/09/2017,Wasps Expenditure,Councillors Community Fund,500.00,Rolleston Club
09/08/2017,Departmental Postages,Electoral Services,"6,910.83",Royal Mail Group Ltd
04/07/2017,Departmental Postages,Parliamentary Elections,"2,188.11",Royal Mail Group Ltd
12/06/2017,Departmental Postages,Recovery,629.66,Royal Mail Group Ltd
17/07/2017,Departmental Postages,Recovery,793.82,Royal Mail Group Ltd
01/09/2017,Rents,Wetmore Maltings (New Offices),"41,572.50",Rushton Hickman Partnership
08/09/2017,Rents,Wetmore Maltings (New Offices),"5,710.82",Rushton Hickman Partnership
05/07/2017,Insurances,Wetmore Maltings (New Offices),"4,093.92",Rushton Hickman Partnership
02/08/2017,Grounds Maintenance,Open Spaces,"4,000.00",S.J Sherratt & Sons.
10/07/2017,Software Licenses & Contracts,Facilities Management,"1,400.00",Safety Media Ltd
04/05/2017,Repairs & Maintenance to Buildings,Burton Town Hall Civic Building,882.40,Saffron Catering Solutions
25/04/2017,Consultants,Asset Management,"1,250.00",Salloway Property Consultants
16/06/2017,Repairs & Maintenance to Buildings,Meadowside Leisure Centre,972.38,Scorpion Event Solutions Ltd.
10/08/2017,Other Equipment,Shopmobility,607.00,Scot Mitchell Ltd
25/07/2017,Repairs & Maintenance to Buildings,Facilities Management,"1,000.00",Seaward Electonic Ltd
13/07/2017,Legal Costs,Planning Delivery,"2,000.00",Sharpe Pritchard Solicitors & Parliamentary Agents
20/06/2017,Lease of vending machine,Shobnall Leisure Complex,"1,126.36",Siemens Financial Services Ltd
31/07/2017,Lease of vending machine,Uttoxeter Leisure Centre,554.71,Siemens Financial Services Ltd
29/08/2017,Website Construction & Maintenance,Programmes & Information,"1,177.77",Siteimprove Ltd
18/07/2017,Catering Supplies,Shobnall Leisure Complex,573.76,Slush Puppie Limited
11/07/2017,Other Equipment,Electoral Services,"4,500.00",South Norfolk Council
07/09/2017,Water Services,Meadowside Leisure Centre,945.32,South Staffordshire Water Business
01/08/2017,Water Services,Meadowside Leisure Centre,943.40,South Staffordshire Water Business
04/07/2017,Water Services,Meadowside Leisure Centre,940.05,South Staffordshire Water Business
10/06/2017,Water Services,Public Conveniences,"2,629.39",South Staffordshire Water Business
10/08/2017,Water Services,Uttoxeter Leisure Centre,"1,664.51",South Staffordshire Water Business
01/09/2017,Water Services,Open Spaces,627.55,South Staffordshire Water Business
21/06/2017,Third Party Payments,Internal Audit,"19,040.00",South Warwickshire NHS Foundation Trust
09/08/2017,Third Party Payments,Internal Audit,"6,346.67",South Warwickshire NHS Foundation Trust
17/08/2017,Third Party Payments,Internal Audit,"6,346.67",South Warwickshire NHS Foundation Trust
07/09/2017,Third Party Payments,Internal Audit,"6,346.67",South Warwickshire NHS Foundation Trust
13/06/2017,Other Equipment,SPACE,"1,450.00",Sport & Play Limited
01/06/2017,Software Licenses & Contracts,Car Parks - General,"2,316.50",Spur Information Solutions Ltd
19/05/2017,General Grants,Partnerships,"1,788.42",Staffordshire County Council
07/09/2017,Partnership Board,Partnerships,"2,500.00",Staffordshire County Council
31/07/2017,Business Rates,Cornmill Lane Car Parks,"1,650.00",Staffordshire County Council
31/07/2016,Business Rates,Cornmill Lane Car Parks,"1,650.00",Staffordshire County Council
27/03/2017,Search and Investigation Fees,Land Charges,"3,634.50",Staffordshire County Council
19/05/2017,Superannuation Payments,Pension Payments,"230,000.00",Staffordshire County Council
11/07/2017,Contributions to Other Bodies,Tourism Development,"3,000.00",Staffordshire County Council
12/07/2017,Third Party Payments,Trade Waste Recycling,"9,002.21",Staffordshire County Council
28/06/2017,Legal Costs,Legal Services,722.00,Staffordshire County Council
05/09/2017,Disabled Facility Grant Payments,Housing Standards,"2,627.00",Staffordshire Housing Association
07/07/2017,Disabled Facility Grant Payments,Housing Standards,511.38,Staffordshire Housing Association
17/08/2017,Disabled Facility Grant Payments,Housing Standards,"4,820.00",Staffordshire Housing Association
30/08/2017,Disabled Facility Grant Payments,Housing Standards,990.00,Staffordshire Housing Association
07/07/2017,Disabled Facility Grant Payments,Housing Standards,"5,682.00",Staffordshire Housing Association
05/09/2017,Disabled Facility Grant Payments,Housing Standards,839.70,Staffordshire Housing Association
13/07/2017,Disabled Facility Grant Payments,Housing Standards,"5,390.00",Staffordshire Housing Association
06/06/2017,Disabled Facility Grant Payments,Housing Standards,540.00,Staffordshire Housing Association
19/07/2017,Disabled Facility Grant Payments,Housing Standards,"3,768.38",Staffordshire Housing Association
21/09/2017,Disabled Facility Grant Payments,Housing Standards,"3,213.82",Staffordshire Housing Association
17/07/2017,Disabled Facility Grant Payments,Housing Standards,"7,936.67",Staffordshire Housing Association
06/06/2017,Disabled Facility Grant Payments,Housing Standards,"6,003.00",Staffordshire Housing Association
16/08/2017,Disabled Facility Grant Payments,Housing Standards,"5,004.00",Staffordshire Housing Association
17/08/2017,Disabled Facility Grant Payments,Housing Standards,517.95,Staffordshire Housing Association
07/07/2017,Disabled Facility Grant Payments,Housing Standards,"4,020.00",Staffordshire Housing Association
23/08/2017,Disabled Facility Grant Payments,Housing Standards,"4,361.00",Staffordshire Housing Association
13/07/2017,Disabled Facility Grant Payments,Housing Standards,"4,580.00",Staffordshire Housing Association
05/09/2017,Disabled Facility Grant Payments,Housing Standards,"9,333.00",Staffordshire Housing Association
10/08/2017,Disabled Facility Grant Payments,Housing Standards,"4,815.52",Staffordshire Housing Association
28/06/2017,Disabled Facility Grant Payments,Housing Standards,"2,000.00",Staffordshire Housing Association
21/09/2017,Disabled Facility Grant Payments,Housing Standards,820.35,Staffordshire Housing Association
22/08/2017,Disabled Facility Grant Payments,Housing Standards,634.50,Staffordshire Housing Association
06/06/2017,Disabled Facility Grant Payments,Housing Standards,"5,483.00",Staffordshire Housing Association
04/07/2017,Disabled Facility Grant Payments,Housing Standards,"2,095.00",Staffordshire Housing Association
22/08/2017,Disabled Facility Grant Payments,Housing Standards,"7,050.00",Staffordshire Housing Association
20/03/2017,Disabled Facility Grant Payments,Housing Standards,"3,705.00",Staffordshire Housing Association
24/08/2017,Disabled Facility Grant Payments,Housing Standards,"4,660.00",Staffordshire Housing Association
28/06/2017,Disabled Facility Grant Payments,Housing Standards,"27,310.00",Staffordshire Housing Association
24/07/2017,Disabled Facility Grant Payments,Housing Standards,"4,997.00",Staffordshire Housing Association
22/09/2017,Disabled Facility Grant Payments,Housing Standards,"4,655.00",Staffordshire Housing Association
23/11/2015,Partnership Board,Partnerships,"2,520.00",Staffordshire Police HQ
28/06/2017,Contributions to Other Bodies,Planning Policy,"2,000.00",Staffordshire Wildlife Trust
12/09/2017,General Grants,Open Spaces,"4,000.00",Staffordshire Wildlife Trust
08/06/2017,Project Grant Payments,Neighbourhood Management,"7,422.00",Streetscape Products & Services Ltd
08/06/2017,General Grants,Neighbourhood Management,"5,928.00",Streetscape Products & Services Ltd
29/08/2017,Wasps Expenditure,Councillors Community Fund,"3,000.00",Stretton Parish Council
01/08/2017,Items for Resale,Meadowside Leisure Centre,"1,022.23",Swim England Awards (The ASA)
08/07/2017,Swimming Badges,Uttoxeter Leisure Centre,"1,171.32",Swim England Awards (The ASA)
17/07/2017,Promotional Materials,Recycling,"5,065.00",Synergy Print Management Services
18/07/2017,Consultants,Planning Delivery,"1,197.31",Tamworth Borough Council
08/09/2017,Consultants,Planning Delivery,949.14,Tamworth Borough Council
19/06/2017,Consultants,Planning Delivery,849.75,Tamworth Borough Council
18/08/2017,Consultants,Planning Delivery,"1,259.35",Tamworth Borough Council
04/07/2017,Play Equipment,Open Spaces,"1,100.00",Ten Construction Ltd (Natural Sports)
04/07/2017,Play Equipment,Open Spaces,"1,485.00",Ten Construction Ltd (Natural Sports)
24/08/2017,Vehicle Maintenance Costs,Recycling,760.00,Tennants Distribution Ltd
11/09/2017,Rents,Coopers Square Car Park - Surface,"4,398.09",The Hollins Murray Group Limited
01/07/2017,Medical Examinations,Human Resources,797.50,The Listening Centre
10/08/2017,Public/Civic Function Expenses,Twinning and Civic Ceremonials,991.20,Thomas Fattorini Ltd
01/06/2017,Books and Publications,Legal Services,"11,236.00",Thomson Reuters (Professional) UK Ltd
14/09/2017,"Seeds, Plants and Shrubs",Horticultural Resource Centre,"1,555.00",Timber Displays Ltd
25/07/2017,Grounds Maintenance,Open Spaces,625.00,TMC LTD
23/08/2017,Grounds Maintenance,Open Spaces,625.00,TMC LTD
09/06/2017,Grounds Maintenance,Open Spaces,550.00,TMC LTD
31/03/2017,ICT Departmental Purchases,ICT,"1,106.00",Tools4ever Ltd
26/06/2017,Electricity,Meadowside Leisure Centre,"2,118.92",Total Gas & Power
09/08/2017,Electricity,Meadowside Leisure Centre,"4,781.47",Total Gas & Power
25/06/2017,Electricity,Meadowside Leisure Centre,"3,398.06",Total Gas & Power
18/07/2017,Electricity,Meadowside Leisure Centre,"5,020.88",Total Gas & Power
09/09/2017,Electricity,Meadowside Leisure Centre,"4,995.79",Total Gas & Power
24/06/2017,Electricity,Meadowside Leisure Centre,"6,050.75",Total Gas & Power
20/07/2017,Electricity,Meadowside Leisure Centre,"4,811.84",Total Gas & Power
22/07/2017,Electricity,Meadowside Leisure Centre,"4,812.40",Total Gas & Power
15/07/2017,Electricity,Meadowside Leisure Centre,"8,796.71",Total Gas & Power
27/06/2017,Electricity,Meadowside Leisure Centre,"2,176.89",Total Gas & Power
16/07/2017,Electricity,Meadowside Leisure Centre,"8,369.06",Total Gas & Power
28/06/2017,Electricity,Meadowside Leisure Centre,"2,255.36",Total Gas & Power
23/06/2017,Electricity,Meadowside Leisure Centre,"6,273.31",Total Gas & Power
14/07/2017,Electricity,Meadowside Leisure Centre,"7,660.73",Total Gas & Power
19/07/2017,Electricity,Meadowside Leisure Centre,"5,133.93",Total Gas & Power
21/07/2017,Electricity,Meadowside Leisure Centre,"4,849.40",Total Gas & Power
17/07/2017,Electricity,Meadowside Leisure Centre,"6,132.50",Total Gas & Power
09/09/2017,Electricity,Burton Retail Market,"2,124.04",Total Gas & Power
12/07/2017,Electricity,Burton Retail Market,"1,768.76",Total Gas & Power
09/08/2017,Electricity,Burton Retail Market,"1,793.18",Total Gas & Power
12/07/2017,Electricity,Uttoxeter Leisure Centre,"2,923.03",Total Gas & Power
09/08/2017,Electricity,Uttoxeter Leisure Centre,"2,925.70",Total Gas & Power
09/09/2017,Electricity,Uttoxeter Leisure Centre,"3,203.07",Total Gas & Power
09/08/2017,Electricity,Facilities Management,910.69,Total Gas & Power
12/07/2017,Electricity,Facilities Management,851.59,Total Gas & Power
09/09/2017,Electricity,Facilities Management,993.80,Total Gas & Power
12/07/2017,Electricity,Wetmore Maltings (New Offices),"1,791.45",Total Gas & Power
09/08/2017,Electricity,Wetmore Maltings (New Offices),"1,850.34",Total Gas & Power
10/09/2017,Electricity,Wetmore Maltings (New Offices),"2,102.49",Total Gas & Power
25/08/2017,Grounds Maintenance,Open Spaces,"2,000.00",Treewise Solutions Ltd
06/07/2017,Rents,Housing Options - Accommodation,"2,520.00",Trent & Dove Housing
24/07/2017,Arts Programme Expenses,Project WIRED,506.00,Trinity College London
20/07/2017,Repairs and Maintenance of Car Park Ticket Machines,Community and Civil Enforcement,"3,640.10",TSC Signs Ltd
20/07/2017,Repairs and Maintenance of Car Park Ticket Machines,Community and Civil Enforcement,"2,053.08",TSC Signs Ltd
27/07/2017,Growth Point Work,New Growth Points,729.50,Udall-Martin Associates Ltd
30/06/2017,Growth Point Work,New Growth Points,762.10,Udall-Martin Associates Ltd
29/07/2016,Software Licenses & Contracts,Financial Management Unit,"6,480.00",Unit 4 Business Software (Ireland) Ltd
26/05/2017,System Maintenance,ICT,950.00,Unit 4 Business Software (Ireland) Ltd
17/11/2016,Software Licenses & Contracts,Financial Management Unit,"5,966.58",Unit 4 Business Software Limited
26/07/2017,Exhibitions/Events,SPACE,862.20,Uttoxeter Basketball Club
04/09/2017,Salaries,Sports Development Project,600.00,Uttoxeter Basketball Club
11/09/2017,Christmas Decorations,Grants for Tourism,"5,000.00",Uttoxeter Town Council
31/07/2017,Third Party Payments,Recycling,"1,345.20",Vital Earth GB Ltd
31/08/2017,Third Party Payments,Recycling,"1,692.74",Vital Earth GB Ltd
30/06/2017,Third Party Payments,Recycling,"1,369.31",Vital Earth GB Ltd
15/08/2017,Mobile Telephones,ICT,592.36,Vodafone Limited
15/07/2017,Mobile Telephones,ICT,620.40,Vodafone Limited
01/08/2017,Telephones,Switchboard and Reception,633.89,Vodafone T/A Cable & Wireless UK
01/07/2017,Telephones,Switchboard and Reception,"2,933.99",Vodafone T/A Cable & Wireless UK
14/07/2017,Telephones,Switchboard and Reception,"1,127.59",Vodafone T/A Cable & Wireless UK
01/07/2017,Telephones,Switchboard and Reception,633.89,Vodafone T/A Cable & Wireless UK
01/09/2017,Telephones,Switchboard and Reception,633.89,Vodafone T/A Cable & Wireless UK
13/08/2017,Telephones,Switchboard and Reception,"1,005.80",Vodafone T/A Cable & Wireless UK
12/09/2017,"Seeds, Plants and Shrubs",Horticultural Resource Centre,"1,152.00",Volmary Ltd
22/06/2017,Water Services,Uttoxeter Leisure Centre,823.90,Water Plus Ltd
01/09/2017,Direct Purchases,DSO Stores Account,941.20,Watson Petroleum Ltd
16/06/2017,CCTV Manning Contract,Closed Circuit Cameras,"115,953.40",West Midlands Combined Authority
25/04/2017,Consultants,National Forest,638.08,Whiting Landscape Ltd
30/06/2017,Third Party Payments,Recycling,"6,894.83",Willshee�s Skip Hire
31/08/2017,Third Party Payments,Recycling,"6,823.30",Willshee�s Skip Hire
31/07/2017,Third Party Payments,Recycling,"6,334.36",Willshee�s Skip Hire
24/08/2017,Printing and Stationery,Meadowside Leisure Centre,755.50,Xn Leisure Systems Limited
24/08/2017,Printing and Stationery,Uttoxeter Leisure Centre,755.50,Xn Leisure Systems Limited
25/09/2017,Other Expenses,Brewhouse Community Ticket Sales,"1,110.00",Yellowstone Events Limited
14/08/2017,Advertising,Cultural Services Marketing,961.08,Yes Response Ltd
13/09/2017,Items for Resale,Meadowside Leisure Centre,862.75,Zoggs International Ltd
28/07/2017,Items for Resale,Meadowside Leisure Centre,889.95,Zoggs International Ltd
08/09/2017,Items for Resale,Meadowside Leisure Centre,707.09,Zoggs International Ltd
15/06/2017,Items for Resale,Meadowside Leisure Centre,711.45,Zoggs International Ltd
17/08/2017,Items for Resale,Uttoxeter Leisure Centre,"1,148.35",Zoggs International Ltd
